bitfinex/quotes_ETHUSD_20260114
["timestamp","ask_amount","ask_price","bid_price","bid_amount"]
[1768367051341,0.968,3330.3,3329.8,6.48731059]
[1768367051542,2.22,3330.4,3329.8,6.48731059]
[1768367051739,2.22,3330.4,3329.9,3.00309318]
[1768367052553,2.22,3330.4,3330.0,0.03003003]
[1768367052844,2.22,3330.4,3329.9,3.00309318]
[1768367053474,2.775,3330.4,3330.0,0.03003003]
[1768367053664,0.413,3330.7,3330.0,0.03003003]
[1768367053665,10.05423689,3330.8,3330.0,16.25905697]
[1768367053860,10.05423689,3330.8,3330.1,3.00291282]
[1768367055905,10.05423689,3330.8,3330.0,3.00299211]
[1768367055906,10.60923689,3330.8,3330.0,3.00299211]
[1768367056611,10.60923689,3330.8,3330.0,6.00599511]
[1768367057710,0.992,3330.8,3330.3,9.77174638]
[1768367057885,0.992,3330.8,3330.4,12.7743887]
[1768367058280,1.547,3330.8,3330.4,12.7743887]
[1768367058510,1.547,3330.8,3330.4,3.00264232]
[1768367059412,0.002,3330.5,3330.4,3.00264232]
[1768367059713,1.547,3330.8,3330.3,3.00268963]
[1768367060609,11.51794032,3330.8,3329.8,9.821]
[1768367060907,11.51794032,3330.8,3330.1,3.00286037]
[1768367061114,11.51794032,3330.8,3330.2,3.00278874]
[1768367061480,2.102,3330.8,3330.2,3.00278874]
[1768367061680,11.51794032,3330.8,3330.2,6.00561139]
[1768367062088,11.51794032,3330.8,3330.2,3.00278874]
[1768367062312,11.51794032,3330.8,3330.2,3.60335659]
[1768367063332,4.94607575,3332.6,3331.8,9.30342515]
[1768367063611,9.97094032,3332.8,3331.9,2.43716153]
[1768367063933,9.97094032,3332.8,3332.6,0.15571501]
[1768367063934,10.3002025,3332.8,3332.6,0.15571501]
[1768367064229,10.3002025,3332.8,3331.8,9.30342515]
[1768367064431,10.3002025,3332.8,3331.7,6.48731059]
[1768367064725,10.3002025,3332.8,3331.8,0.412]
[1768367064883,9.41594032,3332.6,3331.8,0.412]
[1768367065296,9.41594032,3332.6,3331.9,3.00129055]
[1768367065725,9.97094032,3332.6,3331.9,3.00129055]
[1768367067991,0.555,3332.6,3332.0,9.30342515]
[1768367068190,1.11,3332.6,3332.0,9.30342515]
[1768367069595,1.11,3332.6,3332.0,12.30453724]
[1768367070740,1.665,3332.6,3332.0,9.30342515]
[1768367071058,1.665,3332.6,3332.0,12.30458398]
[1768367071257,1.665,3332.6,3332.0,3.00115883]
[1768367071642,1.665,3332.6,3332.1,3.4130801]
[1768367071962,0.002,3332.3,3332.1,3.4130801]
[1768367072169,11.08294032,3332.6,3332.1,3.4130801]
[1768367072550,11.08294032,3332.6,3332.1,0.412]
[1768367073876,11.08294032,3332.6,3332.0,0.412]
[1768367073877,9.41594032,3332.5,3332.0,0.412]
[1768367074689,9.41594032,3332.5,3331.8,3.00136434]
[1768367074986,9.41594032,3332.5,3331.8,3.41336434]
[1768367076284,9.97094032,3332.5,3331.8,3.00136434]
[1768367076581,9.97094032,3332.5,3331.8,3.41336434]
[1768367078578,9.97094032,3332.5,3331.8,6.41474497]
[1768367078754,10.52594032,3332.5,3331.8,8.05256246]
[1768367079692,10.52594032,3332.5,3331.8,18.01599243]
[1768367079992,1.11,3332.5,3331.8,18.01599243]
[1768367080970,1.11,3332.5,3331.8,17.60399243]
[1768367081307,10.68418926,3332.5,3331.8,18.01599243]
[1768367081860,1.665,3332.5,3331.9,0.7608647]
[1768367083487,1.665,3332.5,3332.0,3.00120048]
[1768367083681,2.22,3332.5,3332.0,3.00120048]
[1768367083881,2.22,3332.5,3332.1,0.001]
[1768367084078,11.23918926,3332.5,3332.1,0.001]
[1768367084278,12.58530819,3332.5,3332.1,0.001]
[1768367084483,9.01918926,3332.4,3332.1,0.001]
[1768367086092,9.57418926,3332.4,3332.1,0.001]
[1768367087990,0.555,3332.4,3332.1,0.001]
[1768367088498,1.11,3332.4,3332.1,0.001]
[1768367089396,1.11,3332.4,3332.1,0.60435584]
[1768367089568,1.11,3332.4,3332.1,0.001]
[1768367091500,1.665,3332.4,3332.1,0.001]
[1768367092083,1.65401473,3332.4,3332.1,0.001]
[1768367092271,1.021208,3332.4,3332.1,0.001]
[1768367093914,1.576208,3332.4,3332.1,0.001]
[1768367096206,10.63982126,3333.0,3332.2,0.412]
[1768367096510,10.63982126,3333.0,3332.3,0.0300093]
[1768367096511,9.29907792,3332.9,3332.3,0.0300093]
[1768367096676,9.01918926,3332.9,3332.3,0.0300093]
[1768367096876,1.620632,3333.0,3332.3,12.96436025]
[1768367097118,1.620632,3333.0,3332.4,0.80198455]
[1768367097973,10.63982126,3333.0,3332.4,0.80198455]
[1768367098521,11.19482126,3333.0,3332.3,6.00186056]
[1768367099212,11.19482126,3333.0,3332.4,9.96342997]
[1768367099213,2.175632,3333.0,3332.4,9.96342997]
[1768367099875,9.01918927,3333.0,3332.3,16.00186056]
[1768367100097,6.31918927,3333.0,3332.4,30.0]
[1768367100300,1e-08,3333.2,3332.5,9.99343747]
[1768367100506,1e-08,3333.2,3333.1,0.02085358]
[1768367100925,1e-08,3333.3,3333.1,0.02085358]
[1768367101232,1e-08,3333.3,3333.2,12.96354997]
[1768367102517,1e-08,3333.3,3332.5,9.96342997]
[1768367102722,1e-08,3333.3,3332.6,0.412]
[1768367102932,1e-08,3333.3,3332.7,3.00052193]
[1768367103240,1e-08,3333.3,3332.7,3.0005701]
[1768367103532,0.55500001,3333.3,3332.7,3.0005701]
[1768367103739,0.55500001,3333.3,3332.6,13.37605]
[1768367103938,0.55500001,3333.3,3332.6,15.07373645]
[1768367104142,0.55500001,3333.3,3332.6,14.66173645]
[1768367104324,9.32119014,3333.3,3332.6,4.69830648]
[1768367104528,9.32119014,3333.3,3332.6,6.41328017]
[1768367104835,9.32119014,3333.3,3332.6,3.41262003]
[1768367106073,9.87619014,3333.3,3332.6,3.41262003]
[1768367106345,9.87619014,3333.3,3332.6,6.41328017]
[1768367106552,9.87619014,3333.3,3332.6,5.05029104]
[1768367106712,1.11000001,3333.3,3332.6,14.98716975]
[1768367107215,1.11000001,3333.3,3332.6,17.98782989]
[1768367107969,0.002,3333.0,3332.8,9.93687871]
[1768367108158,1.11000001,3333.3,3332.9,10.79101508]
[1768367108474,1.11000001,3333.3,3332.9,30.0]
[1768367108780,1.66500001,3333.3,3332.9,30.0]
[1768367109350,1.66500001,3333.3,3332.9,39.93687871]
[1768367109533,1.66500001,3333.3,3332.9,9.93687871]
[1768367109973,1.66500001,3333.3,3332.9,12.93724695]
[1768367110348,9.75881053,3333.8,3333.0,0.030003]
[1768367110936,9.34681053,3333.8,3333.0,9.96688171]
[1768367111136,0.557,3333.8,3333.2,9.93687871]
[1768367111380,0.557,3333.8,3333.4,30.0]
[1768367111551,0.557,3333.8,3333.4,9.93687871]
[1768367112375,0.557,3333.8,3333.4,12.93679919]
[1768367112873,0.507,3333.8,3333.5,9.93687871]
[1768367113371,0.002,3334.0,3333.4,14.6348304]
[1768367113564,0.002,3334.0,3333.6,9.119]
[1768367113874,0.002,3334.0,3333.8,0.02084242]
[1768367114256,8.98765635,3334.0,3333.8,0.02084242]
[1768367116289,9.54265635,3334.0,3333.8,0.02084242]
[1768367118591,10.09765635,3334.0,3333.8,0.02084242]
[1768367118789,10.09765635,3334.0,3333.3,3.85]
[1768367118996,10.09765635,3334.0,3332.9,10.412]
[1768367118997,0.44901074,3333.9,3332.9,10.412]
[1768367119194,0.44901074,3333.9,3333.0,3.00028746]
[1768367119566,0.44901074,3333.9,3332.9,12.83627755]
[1768367119901,0.44901074,3333.9,3332.9,11.41959516]
[1768367120076,0.44901074,3333.9,3332.9,11.42059516]
[1768367120399,7.99707578,3334.0,3332.9,14.42094683]
[1768367120400,0.002,3333.6,3332.9,14.42094683]
[1768367120563,0.53552353,3333.6,3332.9,1.58468279]
[1768367120771,0.53552353,3333.6,3332.9,4.58506039]
[1768367121068,8.81662223,3333.5,3332.9,3.0013776]
[1768367121969,0.557,3333.6,3332.9,0.001]
[1768367122292,9.25229691,3333.5,3332.9,0.001]
[1768367123496,9.80729691,3333.5,3332.9,0.001]
[1768367125771,10.36229691,3333.5,3332.9,0.001]
[1768367128105,10.91729691,3333.5,3332.9,0.001]
[1768367129100,13.91716009,3333.5,3332.9,0.001]
[1768367129308,0.18503659,3333.4,3332.9,0.001]
[1768367130189,3.18497959,3333.4,3332.9,0.001]
[1768367130396,9.16162431,3333.3,3332.9,0.001]
[1768367131723,3.966943,3333.4,3332.9,0.001]
[1768367131724,0.967,3333.4,3332.9,0.001]
[1768367131921,13.12856454,3333.4,3332.9,0.001]
[1768367132091,14.96359752,3333.4,3332.9,0.001]
[1768367132290,14.96359752,3333.4,3333.2,0.001]
[1768367132487,14.96359752,3333.4,3332.9,0.001]
[1768367132488,0.27480246,3333.3,3332.9,0.001]
[1768367132920,9.07275609,3333.2,3332.9,0.001]
[1768367133722,3.00018658,3333.2,3332.9,0.001]
[1768367133894,0.362782,3333.1,3332.9,0.001]
[1768367135408,0.555,3333.1,3332.9,0.001]
[1768367136930,0.00093449,3333.0,3332.1,0.001]
[1768367137224,0.00093449,3333.0,3331.4,9.79163831]
[1768367137225,9.34388538,3332.9,3331.4,9.79163831]
[1768367137428,0.094364,3332.7,3331.4,9.79163831]
[1768367137742,10.90111798,3333.1,3331.5,1.64462944]
[1768367137743,9.25139017,3332.5,3331.5,1.64462944]
[1768367138953,0.18593426,3332.3,3331.5,1.64462944]
[1768367140243,0.74093426,3332.3,3331.5,1.64462944]
[1768367140613,9.89155157,3332.2,3331.5,1.64462944]
[1768367141129,3.00111041,3332.1,3331.5,1.23262944]
[1768367141325,3.00111041,3332.1,3331.5,1.64462944]
[1768367142530,3.55611041,3332.1,3331.5,1.64462944]
[1768367143841,3.55611041,3332.1,3331.8,0.001]
[1768367144930,4.11111041,3332.1,3331.8,0.001]
[1768367146668,1.11,3332.1,3331.8,0.001]
[1768367147582,1.665,3332.1,3331.8,0.001]
[1768367148893,4.6661271,3332.1,3331.8,0.001]
[1768367149982,2.22,3332.1,3331.8,9.79263831]
[1768367150188,2.22,3332.1,3331.9,9.82165121]
[1768367150384,2.22,3332.1,3331.9,9.79163831]
[1768367152486,2.775,3332.1,3331.9,9.79163831]
[1768367153902,5.77611438,3332.1,3331.9,9.79163831]
[1768367154402,2.775,3332.1,3331.9,9.79163831]
[1768367154866,2.775,3332.1,3331.8,0.001]
[1768367155070,3.33,3332.1,3331.8,0.001]
[1768367155770,6.33112088,3332.1,3331.8,0.001]
[1768367156204,3.33,3332.1,3331.8,0.001]
[1768367156601,3.33,3332.1,3331.8,0.413]
[1768367157791,3.885,3332.1,3331.8,0.413]
[1768367158698,6.88612725,3332.1,3331.8,0.413]
[1768367159484,3.885,3332.1,3331.8,0.413]
[1768367160630,4.44,3332.1,3331.8,0.413]
[1768367161129,7.44111827,3332.1,3331.8,0.413]
[1768367161615,7.44111827,3332.1,3331.8,0.001]
[1768367161782,7.44111827,3332.1,3331.8,0.413]
[1768367162114,7.44111827,3332.1,3331.8,0.001]
[1768367162892,7.99611827,3332.1,3331.8,0.001]
[1768367164283,7.99611827,3332.1,3331.6,10.20363831]
[1768367164714,7.99611827,3332.1,3331.6,0.412]
[1768367164910,16.49125285,3332.1,3331.3,2.53465605]
[1768367165196,16.49125285,3332.1,3331.4,0.412]
[1768367165378,17.04625285,3332.1,3331.4,0.412]
[1768367166102,17.04625285,3332.1,3331.3,13.23719453]
[1768367166103,17.04625285,3332.1,3331.3,4.15228549]
[1768367166299,17.04625285,3332.1,3329.9,6.44]
[1768367166300,8.53865451,3331.3,3330.5,0.001]
[1768367166485,9.82053992,3331.1,3330.5,0.001]
[1768367167916,10.37553992,3331.1,3330.5,0.001]
[1768367168507,13.37761981,3331.1,3330.5,0.001]
[1768367168682,8.55147337,3331.0,3330.5,0.001]
[1768367168888,3.55707989,3331.1,3330.5,0.001]
[1768367169086,5.19632883,3331.1,3330.5,0.001]
[1768367170320,5.75132883,3331.1,3330.5,0.001]
[1768367172840,6.30632883,3331.1,3330.5,0.001]
[1768367175744,6.86132883,3331.1,3330.5,0.001]
[1768367177648,5.22207989,3331.1,3330.5,9.05589073]
[1768367178252,2.775,3331.1,3330.6,10.31495608]
[1768367178849,0.002,3330.8,3330.6,10.31495608]
[1768367179152,2.777,3331.1,3330.8,9.90295608]
[1768367179855,2.00492751,3332.0,3330.9,9.90295608]
[1768367179856,9.98492673,3331.8,3330.9,9.90295608]
[1768367180153,3.41320048,3332.0,3331.0,11.60547108]
[1768367180313,0.7615376,3331.9,3331.2,9.90295608]
[1768367180654,0.7615376,3331.9,3331.3,9.90295608]
[1768367180861,0.7615376,3331.9,3331.5,9.90295608]
[1768367181016,0.7615376,3331.9,3331.6,1.10816719]
[1768367181843,0.7615376,3331.9,3331.4,0.412]
[1768367183018,9.78077785,3331.8,3331.3,0.412]
[1768367183344,9.78077785,3331.8,3331.1,0.412]
[1768367183844,9.78077785,3331.8,3331.0,9.90295608]
[1768367184049,9.78077785,3331.8,3330.8,13.31717484]
[1768367184250,6.24630854,3331.7,3330.9,1.33171748]
[1768367184417,6.24630854,3331.7,3330.9,11.23467356]
[1768367184844,6.24630854,3331.7,3330.7,9.90295608]
[1768367184845,9.71541845,3331.6,3330.7,9.90295608]
[1768367185050,9.71541845,3331.6,3330.8,0.412]
[1768367185552,10.27041845,3331.6,3330.8,0.412]
[1768367186247,13.27206434,3331.6,3330.8,0.412]
[1768367186452,3.30954362,3331.5,3330.7,13.31732561]
[1768367186752,3.30954362,3331.5,3330.8,1.33173256]
[1768367187554,3.30954362,3331.5,3330.5,9.90395608]
[1768367187738,6.55829178,3331.6,3330.5,9.90395608]
[1768367187739,9.6513597,3331.3,3330.5,0.001]
[1768367188348,3.37296178,3331.1,3330.5,0.001]
[1768367188549,9.58857572,3330.9,3330.5,0.001]
[1768367190357,3.43511792,3330.8,3330.5,0.001]
[1768367190851,0.555,3330.9,3330.5,0.001]
[1768367192967,1.11,3330.9,3330.5,0.001]
[1768367193122,7.15493071,3330.9,3330.5,0.001]
[1768367193330,4.15273042,3330.9,3330.5,0.001]
[1768367193523,4.11219159,3330.9,3330.5,0.001]
[1768367193836,9.78077785,3330.8,3330.5,0.001]
[1768367194221,1.11,3330.9,3330.5,0.001]
[1768367195268,1.665,3330.9,3330.5,9.82324971]
[1768367195567,1.665,3330.9,3330.6,9.82224971]
[1768367195568,1.615,3330.9,3330.6,9.82224971]
[1768367197687,2.17,3330.9,3330.6,9.82224971]
[1768367199966,0.967,3331.5,3330.9,9.82224971]
[1768367202236,1.522,3331.5,3330.9,9.82224971]
[1768367202439,1.11,3331.5,3331.0,9.82224971]
[1768367202633,1.11,3331.5,3331.2,9.82224971]
[1768367203336,0.555,3331.6,3331.5,9.82224971]
[1768367203967,0.555,3331.6,3331.3,9.82224971]
[1768367204349,0.555,3331.6,3331.2,3.00188044]
[1768367204547,0.555,3331.6,3331.2,12.82413015]
[1768367204770,1.11,3331.6,3331.2,12.82413015]
[1768367206651,1.11,3331.6,3331.2,12.82415954]
[1768367206852,0.555,3332.3,3331.8,9.82224971]
[1768367207373,0.555,3332.3,3331.9,9.82224971]
[1768367207839,0.555,3332.2,3331.9,9.82224971]
[1768367209567,1.11,3332.2,3331.9,9.82224971]
[1768367211480,1.11,3332.2,3331.7,10.23424971]
[1768367212180,1.665,3332.2,3331.6,0.412]
[1768367212487,1.665,3332.2,3331.6,10.23424971]
[1768367214179,1.665,3332.2,3331.6,13.23575215]
[1768367214372,1.665,3332.2,3331.7,9.82224971]
[1768367214556,2.22,3332.2,3331.7,9.82224971]
[1768367215588,11.93914725,3333.2,3332.3,9.82224971]
[1768367215886,6.72480292,3333.1,3332.3,9.82224971]
[1768367216081,6.72480292,3333.1,3332.2,3.00101626]
[1768367216252,10.2793457,3333.0,3332.2,12.82326597]
[1768367216662,10.2793457,3333.0,3332.2,12.82325224]
[1768367216852,10.2793457,3333.0,3332.3,9.82224971]
[1768367216853,10.8343457,3333.0,3332.3,9.82224971]
[1768367217053,10.8343457,3333.0,3332.3,12.82317263]
[1768367217279,10.8343457,3333.0,3332.3,9.82224971]
[1768367217464,10.8343457,3333.0,3332.3,12.8231706]
[1768367217664,10.8343457,3333.0,3332.5,9.82224971]
[1768367217665,0.555,3333.0,3332.5,9.82224971]
[1768367219395,1.11,3333.0,3332.5,9.82224971]
[1768367219692,1.11,3333.0,3332.5,12.82296936]
[1768367219869,1.11,3333.0,3332.6,9.82224971]
[1768367221771,1.665,3333.0,3332.6,9.82224971]
[1768367222070,1.665,3333.0,3332.4,10.23424971]
[1768367224459,1.665,3333.0,3332.0,14.08424971]
[1768367224460,9.32105353,3332.9,3332.0,14.08424971]
[1768367224663,9.32105353,3332.9,3332.0,3.85]
[1768367225108,9.32105353,3332.9,3332.1,9.60097317]
[1768367225265,5.22031001,3333.0,3332.2,9.60097317]
[1768367225463,2.22,3333.0,3332.4,9.60097317]
[1768367225894,2.22,3333.0,3332.1,12.60207055]
[1768367226197,2.22,3333.0,3332.3,3.00089521]
[1768367226495,2.22,3333.0,3332.5,9.60097317]
[1768367226894,2.775,3333.0,3332.5,9.60097317]
[1768367227767,0.002,3332.7,3332.5,9.60097317]
[1768367228084,2.777,3333.0,3332.5,9.60097317]
[1768367229283,3.332,3333.0,3332.5,9.60097317]
[1768367230399,3.332,3333.0,3332.6,9.60097317]
[1768367231793,3.887,3333.0,3332.6,9.60097317]
[1768367234380,4.442,3333.0,3332.6,9.60097317]
[1768367237270,4.997,3333.0,3332.6,9.60097317]
[1768367239604,5.552,3333.0,3332.6,9.60097317]
[1768367240413,0.002,3332.7,3332.6,9.60097317]
[1768367240618,11.83369039,3333.0,3332.5,3.00073542]
[1768367241317,5.552,3333.0,3332.4,3.00084023]
[1768367241620,5.552,3333.0,3332.4,12.64522679]
[1768367242193,5.552,3333.0,3332.4,9.64438656]
[1768367242386,6.107,3333.0,3332.4,9.64438656]
[1768367243424,6.107,3333.0,3332.4,12.64520097]
[1768367244924,6.662,3333.0,3332.4,12.64520097]
[1768367246326,0.50500007,3332.9,3332.4,12.64520097]
[1768367246943,3.887,3333.0,3332.4,3.00081441]
[1768367247124,8.37068073,3333.7,3332.9,9.64438656]
[1768367247830,2.99968376,3333.7,3332.9,9.64438656]
[1768367248016,5.65655772,3333.7,3332.9,9.64438656]
[1768367248190,5.65655522,3333.7,3332.9,9.64438656]
[1768367248394,2.65687396,3333.7,3332.9,12.64474445]
[1768367248999,2.65687396,3333.7,3333.0,9.64438656]
[1768367249215,3.37505865,3333.7,3333.0,9.64438656]
[1768367250130,6.37476437,3333.7,3333.0,9.64438656]
[1768367250296,3.93005865,3333.7,3333.0,9.64438656]
[1768367250497,3.93005865,3333.7,3332.8,10.05638656]
[1768367250996,9.86586267,3333.6,3332.8,10.05638656]
[1768367251307,1.27318469,3333.7,3332.8,10.05638656]
[1768367251625,3.21187396,3333.7,3332.8,10.05638656]
[1768367251829,6.21156111,3333.7,3332.8,10.05638656]
[1768367252129,6.21156111,3333.7,3332.9,9.64438656]
[1768367252130,3.21187396,3333.7,3332.9,9.64438656]
[1768367252336,0.002,3333.4,3332.9,12.64472408]
[1768367252511,0.002,3333.4,3332.9,3.00033752]
[1768367252706,0.557,3333.4,3332.9,3.34100571]
[1768367252914,0.557,3333.4,3333.0,9.64438656]
[1768367253116,0.557,3333.7,3333.1,9.64438656]
[1768367255130,0.557,3333.7,3333.1,12.64458135]
[1768367255337,1.112,3333.7,3333.1,9.64438656]
[1768367255541,1.112,3333.7,3333.1,10.370668]
[1768367256021,1.112,3333.7,3333.1,13.37086254]
[1768367256433,1.112,3333.7,3333.2,9.6089225]
[1768367256943,1.112,3333.7,3333.1,13.33539848]
[1768367257324,1.112,3333.7,3333.3,9.6089225]
[1768367257542,1.112,3333.7,3333.4,0.34066819]
[1768367257867,1.667,3333.7,3333.1,12.60911704]
[1768367258005,1.667,3333.7,3333.2,9.6089225]
[1768367259941,1.667,3333.7,3333.2,12.60904177]
[1768367260140,2.222,3333.7,3333.2,12.60904177]
[1768367261442,2.222,3333.7,3333.1,9.6089225]
[1768367261619,2.222,3333.7,3333.1,12.60906617]
[1768367261825,2.222,3333.7,3333.1,9.6089225]
[1768367262216,2.222,3333.7,3333.0,3.00025491]
[1768367262416,11.448699,3333.7,3333.0,3.00025491]
[1768367262629,12.003699,3333.7,3333.0,3.00025491]
[1768367263426,12.003699,3333.7,3333.1,3.00020159]
[1768367263850,2.777,3333.7,3333.0,15.60947003]
[1768367264218,2.777,3333.7,3333.1,9.6089225]
[1768367264442,2.777,3333.7,3333.4,0.001]
[1768367265225,3.332,3333.7,3333.4,0.001]
[1768367267618,3.887,3333.7,3333.4,0.001]
[1768367270429,4.442,3333.7,3333.4,0.001]
[1768367272821,4.997,3333.7,3333.4,0.001]
[1768367273830,0.89214001,3333.7,3333.4,9.6099225]
[1768367274024,0.002,3333.9,3333.4,9.6099225]
[1768367274854,1.112,3334.0,3333.7,9.6089225]
[1768367275258,1.667,3334.0,3333.7,9.6089225]
[1768367275547,1.667,3334.0,3333.4,0.001]
[1768367275755,4.91405588,3333.9,3333.4,0.001]
[1768367276059,5.23648951,3333.9,3333.4,0.001]
[1768367276566,5.23648951,3333.9,3333.1,3.85]
[1768367276567,9.18357257,3333.6,3333.1,3.85]
[1768367277303,4.95675104,3333.5,3333.1,3.85]
[1768367277814,5.51175104,3333.5,3333.1,3.85]
[1768367279598,5.51175104,3333.5,3332.7,6.85155901]
[1768367279799,5.51175104,3333.5,3332.7,16.46048151]
[1768367280661,6.06675104,3333.5,3332.7,16.46048151]
[1768367280975,4.99859657,3333.3,3332.7,3.851]
[1768367283091,5.55359657,3333.3,3332.7,3.851]
[1768367283586,0.555,3333.3,3332.7,16.46045462]
[1768367283795,0.555,3333.3,3332.7,16.46046984]
[1768367283963,0.555,3333.3,3332.8,0.0300048]
[1768367285468,1.11,3333.3,3332.8,9.92752226]
[1768367285785,1.11,3333.3,3332.8,9.89751746]
[1768367285988,1.11,3333.3,3332.9,9.92752136]
[1768367286288,1.11,3333.3,3332.9,9.89751746]
[1768367287971,1.665,3333.3,3332.9,9.89751746]
[1768367288170,1.665,3333.3,3333.1,9.89851746]
[1768367288998,1.665,3333.3,3333.1,0.001]
[1768367290183,2.22,3333.3,3333.1,0.001]
[1768367292610,2.775,3333.3,3333.1,0.001]
[1768367294888,5.77509776,3333.3,3333.1,0.001]
[1768367295097,6.33009776,3333.3,3333.1,0.001]
[1768367295299,3.33,3333.3,3333.1,0.001]
[1768367296580,6.33008069,3333.3,3333.1,0.001]
[1768367296880,3.33,3333.3,3333.1,0.001]
[1768367297409,3.885,3333.3,3333.1,0.001]
[1768367299211,6.88504135,3333.3,3333.1,0.001]
[1768367299715,3.885,3333.3,3333.1,0.001]
[1768367300025,4.44,3333.3,3333.1,0.001]
[1768367300435,7.44004164,3333.3,3333.1,0.001]
[1768367300594,13.1616492,3333.3,3333.2,0.001]
[1768367300795,13.1616492,3333.3,3332.7,0.001]
[1768367301004,12.20964939,3333.3,3332.7,0.001]
[1768367301586,9.32657621,3333.2,3332.7,0.001]
[1768367302300,10.85208328,3333.3,3332.7,0.001]
[1768367302639,0.555,3333.2,3332.7,0.001]
[1768367304235,3.00021001,3333.1,3332.7,0.001]
[1768367305001,3.55521001,3333.1,3332.7,0.001]
[1768367308341,4.11021001,3333.1,3332.7,0.001]
[1768367308710,7.11042002,3333.1,3332.7,0.001]
[1768367308909,1.69919962,3333.0,3332.7,0.001]
[1768367309111,7.11042002,3333.1,3332.7,0.001]
[1768367309638,11.92559746,3333.1,3332.7,0.001]
[1768367309838,11.92559746,3333.1,3331.9,0.001]
[1768367309839,4.85984029,3332.8,3331.9,0.001]
[1768367310039,9.19390968,3332.3,3331.2,0.412]
[1768367310354,4.9465173,3332.1,3331.4,9.51940871]
[1768367310506,6.00204068,3332.2,3330.9,0.001]
[1768367310507,4.98856648,3331.9,3331.0,9.51940871]
[1768367310708,6.88534796,3331.8,3331.0,9.51940871]
[1768367310903,6.88534796,3331.8,3330.9,0.001]
[1768367310904,0.412,3331.8,3331.2,9.51940871]
[1768367311106,0.412,3332.0,3331.3,9.51940871]
[1768367312140,0.412,3332.0,3331.3,9.52040871]
[1768367312340,0.412,3332.0,3331.4,9.51940871]
[1768367313547,0.967,3332.0,3331.4,9.51940871]
[1768367315950,1.522,3332.0,3331.4,9.51940871]
[1768367318560,2.077,3332.0,3331.4,9.51940871]
[1768367321159,2.632,3332.0,3331.4,9.51940871]
[1768367321674,2.632,3332.0,3331.5,9.83927618]
[1768367323744,3.187,3332.0,3331.5,9.83927618]
[1768367324134,3.187,3332.0,3331.7,0.001]
[1768367326168,3.742,3332.0,3331.7,0.001]
[1768367328571,4.297,3332.0,3331.7,0.001]
[1768367330573,14.05807464,3332.0,3331.7,0.001]
[1768367330942,17.61428107,3332.0,3331.7,0.001]
[1768367331139,5.10754146,3331.9,3331.7,0.001]
[1768367331839,8.58302205,3332.0,3331.7,0.001]
[1768367332371,5.85320643,3332.0,3331.7,0.001]
[1768367332938,2.852,3332.0,3331.7,0.001]
[1768367333252,5.85327327,3332.0,3331.7,0.001]
[1768367333444,9.07129287,3331.9,3331.7,0.001]
[1768367333771,6.40824516,3332.0,3331.7,0.001]
[1768367335853,6.96324516,3332.0,3331.7,0.001]
[1768367336877,12.03115311,3332.0,3331.7,0.001]
[1768367337055,9.02990795,3332.0,3331.7,0.001]
[1768367337261,12.03113836,3332.0,3331.7,0.001]
[1768367338384,12.58613836,3332.0,3331.7,0.001]
[1768367338551,7.51823041,3332.0,3331.7,0.001]
[1768367339475,18.03744348,3332.0,3331.7,0.001]
[1768367339647,5.06790795,3331.9,3331.3,0.001]
[1768367339842,5.47990795,3331.9,3331.3,0.001]
[1768367340883,9.03628815,3331.9,3331.3,0.001]
[1768367341172,9.03125902,3331.8,3331.3,0.001]
[1768367341343,11.08304598,3331.8,3331.3,0.001]
[1768367342188,11.08304598,3331.8,3330.9,9.84027618]
[1768367343241,6.00294144,3331.7,3330.9,9.84027618]
[1768367343466,11.1104829,3331.7,3330.9,9.84027618]
[1768367345846,11.6654829,3331.7,3330.9,9.84027618]
[1768367346049,13.18940989,3331.7,3330.9,9.84027618]
[1768367346285,8.99202184,3331.6,3330.9,0.001]
[1768367347584,8.99202184,3331.6,3331.2,0.001]
[1768367347782,3.0016509,3331.5,3331.2,0.001]
[1768367347992,11.99359339,3331.6,3331.2,0.001]
[1768367348196,0.555,3331.5,3331.2,0.001]
[1768367349381,5.14638627,3331.4,3330.9,0.001]
[1768367349882,8.95257548,3331.2,3330.9,0.001]
[1768367350685,5.54910807,3331.1,3330.5,1.54212684]
[1768367350884,5.54910807,3331.1,3329.7,2.15073499]
[1768367350885,8.9607709,3330.9,3329.8,9.53439993]
[1768367351046,8.9607709,3330.9,3330.0,9.53439993]
[1768367352110,11.96299369,3330.9,3330.0,9.53439993]
[1768367353274,15.52021648,3330.9,3330.0,9.53439993]
[1768367354379,5.1753447,3330.8,3330.0,9.53439993]
[1768367354578,9.33491663,3330.7,3330.0,9.53439993]
[1768367355810,9.88991663,3330.7,3330.0,9.53439993]
[1768367357317,3.00246201,3330.6,3330.0,9.53439993]
[1768367357503,9.88991663,3330.7,3330.0,9.53439993]
[1768367357692,12.89229108,3330.7,3330.0,9.53439993]
[1768367358715,1.522,3330.7,3330.0,9.53439993]
[1768367359106,4.52437193,3330.7,3330.3,0.001]
[1768367360995,5.07937193,3330.7,3330.3,0.001]
[1768367363403,5.63437193,3330.7,3330.3,0.001]
[1768367363699,5.01043618,3330.6,3330.3,0.001]
[1768367364098,9.08617607,3330.5,3330.3,0.001]
[1768367364903,3.00246528,3330.6,3330.3,0.001]
[1768367365823,3.55746528,3330.6,3330.3,0.001]
[1768367366025,0.555,3330.6,3330.3,0.001]
[1768367366404,3.55746468,3330.6,3330.3,0.001]
[1768367368598,5.94857699,3330.6,3330.3,0.001]
[1768367370230,8.95104167,3330.6,3330.3,0.001]
[1768367371014,9.50604167,3330.6,3330.3,0.001]
[1768367372632,9.50604167,3330.6,3329.9,9.9391552]
[1768367372836,7.66992936,3330.6,3329.9,9.9391552]
[1768367373418,8.22492936,3330.6,3329.9,9.9391552]
[1768367373623,2.22,3330.6,3329.9,9.9391552]